bitfinex-derivatives/quotes_BTCF0:USTF0_20241218
["timestamp","ask_amount","ask_price","bid_price","bid_amount"]
[1734515926264,0.17916559,104070.0,104060.0,2.17408583]
[1734515926462,0.17916559,104070.0,104060.0,2.89568583]
[1734515927971,0.26532707,104070.0,104060.0,2.89568583]
[1734515928176,0.26532707,104070.0,104060.0,2.93776652]
[1734515928374,0.26532707,104070.0,104060.0,2.95836808]
[1734515930802,0.26532707,104070.0,104060.0,2.90043433]
[1734515930968,0.26533812,104070.0,104060.0,2.95836808]
[1734515931172,0.26533812,104070.0,104060.0,2.90043433]
[1734515932570,0.2653377,104070.0,104060.0,2.95836808]
[1734515932775,0.26533774,104070.0,104060.0,2.95836808]
[1734515932974,0.26533774,104070.0,104060.0,2.84250058]
[1734515933162,0.17916559,104070.0,104060.0,2.90043433]
[1734515934472,0.26533769,104070.0,104060.0,2.90043433]
[1734515934882,0.26533747,104070.0,104060.0,2.90043433]
[1734515935068,0.17916559,104070.0,104060.0,2.90043433]
[1734515935376,0.17916559,104070.0,104060.0,2.95836808]
[1734515935985,0.26533827,104070.0,104060.0,2.95836808]
[1734515936473,0.17916559,104070.0,104060.0,2.95836808]
[1734515937275,0.26533762,104070.0,104060.0,2.95836808]
[1734515937473,0.2653369,104070.0,104060.0,2.95836808]
[1734515937665,0.26533712,104070.0,104060.0,2.95836808]
[1734515938077,0.17916559,104070.0,104060.0,2.95836808]
[1734515938470,0.26532508,104070.0,104060.0,2.95836808]
[1734515938973,0.17916559,104070.0,104060.0,2.90141992]
[1734515939191,0.17916559,104070.0,104060.0,2.85937577]
[1734515941179,0.17916559,104070.0,104060.0,2.85997021]
[1734515942686,0.17916559,104070.0,104060.0,2.49917021]
[1734515943480,0.22722159,104070.0,104060.0,0.88330271]
[1734515943689,0.37087307,104070.0,104060.0,0.94123646]
[1734515943878,0.40317307,104070.0,104060.0,0.98328094]
[1734515944179,0.28818724,104070.0,104060.0,0.94123646]
[1734515944373,0.40304941,104070.0,104060.0,0.58043646]
[1734515944683,0.87927212,104070.0,104060.0,0.42423655]
[1734515944879,0.37493085,104070.0,104060.0,0.47229755]
[1734515945377,0.37493085,104070.0,104060.0,0.24169607]
[1734515945581,0.73573085,104070.0,104060.0,0.24169607]
[1734515945774,0.37493085,104070.0,104060.0,0.24169607]
[1734515946474,0.34584711,104070.0,104060.0,0.24169607]
[1734515946690,0.51830845,104070.0,104060.0,0.24169607]
[1734515947291,0.34584711,104070.0,104060.0,0.24169607]
[1734515947679,0.28791336,104070.0,104060.0,0.24169607]
[1734515947974,0.28791336,104070.0,104060.0,0.29962982]
[1734515948480,0.34584711,104070.0,104060.0,0.28374055]
[1734515948677,0.28791336,104070.0,104060.0,0.29962982]
[1734515949884,0.34584711,104070.0,104060.0,0.24169607]
[1734515950477,0.34584711,104070.0,104060.0,0.35756357]
[1734515950478,0.23985736,104070.0,104060.0,0.35756357]
[1734515950679,0.32220095,104070.0,104060.0,1.8416743]
[1734515952689,0.32220095,104070.0,104060.0,1.79962982]
[1734515953384,0.17882335,104070.0,104060.0,1.79962982]
[1734515953791,0.17882335,104070.0,104060.0,2.0302313]
[1734515954584,0.06417976,104070.0,104060.0,1.98747631]
[1734515955813,0.2648171,104070.0,104060.0,2.39028313]
[1734515956289,0.2648171,104070.0,104060.0,2.39020313]
[1734515956482,0.2648171,104070.0,104060.0,2.43224761]
[1734515957287,0.2648171,104070.0,104060.0,2.49018136]
[1734515958190,0.2007171,104070.0,104060.0,2.49018136]
[1734515958381,0.2007171,104070.0,104060.0,2.55318136]
[1734515958586,0.2007171,104070.0,104060.0,2.38054987]
[1734515958792,0.2007171,104070.0,104060.0,2.66826903]
[1734515958992,0.08606719,104070.0,104060.0,2.82274788]
[1734515959499,0.2007171,104070.0,104060.0,2.82274788]
[1734515959698,0.2007171,104070.0,104060.0,2.66826903]
[1734515959893,0.2007171,104070.0,104060.0,2.62622455]
[1734515960488,0.08606719,104070.0,104060.0,2.78070813]
[1734515960693,0.08606719,104070.0,104060.0,2.5505328]
[1734515960894,0.08606719,104070.0,104060.0,1.0505328]
[1734515961288,0.08606719,104070.0,104060.0,2.5505328]
[1734515963100,0.08606719,104070.0,104060.0,2.49259905]
[1734515963294,0.08606719,104070.0,104060.0,2.53464353]
[1734515964192,0.08606719,104070.0,104060.0,2.76484679]
[1734515966007,0.08606719,104070.0,104060.0,2.40404679]
[1734515966303,0.08606719,104070.0,104060.0,2.53464353]
[1734515966603,0.08606719,104070.0,104060.0,2.76484997]
[1734515972611,0.08606719,104070.0,104060.0,2.72280549]
[1734515973309,0.08606719,104070.0,104060.0,2.72281039]
[1734515973510,0.08606719,104070.0,104060.0,2.7228104]
[1734515974611,0.08606719,104070.0,104060.0,2.74199539]
[1734515975312,0.08606719,104070.0,104060.0,2.51178404]
[1734515975705,0.08606719,104070.0,104060.0,2.4346653]
[1734515975913,0.2007171,104070.0,104060.0,1.19153372]
[1734515976407,0.2007171,104070.0,104060.0,2.69153372]
[1734515976805,0.22071942,104070.0,104060.0,0.29889723]
[1734515977006,0.6730819,104070.0,104060.0,0.24137973]
[1734515977307,0.7060819,104070.0,104060.0,0.24137973]
[1734515977911,0.87805677,104070.0,104060.0,0.19331873]
[1734515979312,1.09267813,104070.0,104050.0,0.40295184]
[1734515979509,0.42193513,104060.0,104050.0,0.17271717]
[1734515979707,0.30730552,104060.0,104050.0,0.17271717]
[1734515979911,0.66810552,104060.0,104050.0,0.17271717]
[1734515980121,0.048065,104050.0,104040.0,0.45101884]
[1734515980316,0.3677593,104050.0,104040.0,0.45101884]
[1734515980518,0.3677993,104050.0,104040.0,0.45101884]
[1734515981015,0.67127577,104050.0,104040.0,0.17271717]
[1734515981408,0.04807,104040.0,104030.0,2.06619247]
[1734515981612,0.30646359,104040.0,104030.0,1.96113217]
[1734515981818,0.30650359,104040.0,104030.0,1.96113217]
[1734515982408,0.22285511,104040.0,104030.0,1.74049955]
[1734515984358,0.13694375,104040.0,104030.0,1.56778238]
[1734515984830,0.22285511,104040.0,104030.0,1.56778238]
[1734515985515,0.22285511,104040.0,104030.0,1.74049955]
[1734515987429,0.22285511,104040.0,104030.0,1.56778238]
[1734515989338,0.13694375,104040.0,104030.0,1.56828238]
[1734515989836,0.22285511,104040.0,104030.0,1.56828238]
[1734515990433,0.13694375,104040.0,104030.0,1.56828238]
[1734515994838,0.07901,104040.0,104030.0,1.62621613]
[1734515995236,0.13694375,104040.0,104030.0,1.62621613]
[1734515995449,0.04811,104040.0,104030.0,1.62621613]
[1734515995649,4e-05,104040.0,104030.0,1.98701613]
[1734515997443,0.04811,104040.0,104030.0,1.98701613]
[1734515997839,0.10604375,104040.0,104030.0,1.92908238]
[1734515998055,0.13784375,104040.0,104030.0,1.92908238]
[1734516000146,0.13784375,104040.0,104030.0,1.91948033]
[1734516000465,0.1957775,104040.0,104030.0,1.55868033]
[1734516000657,0.13784375,104040.0,104030.0,1.55868033]
[1734516001143,0.1957775,104040.0,104030.0,1.55868033]
[1734516001442,0.28168886,104040.0,104030.0,1.51060733]
[1734516002436,0.75703734,104040.0,104030.0,1.51060733]
[1734516002637,0.75703734,104040.0,104030.0,0.01060733]
[1734516004344,0.75703734,104040.0,104030.0,0.01010733]
[1734516004647,0.75703734,104040.0,104030.0,0.05818233]
[1734516004837,0.67112598,104040.0,104030.0,0.05818233]
[1734516005060,0.814463,104040.0,104030.0,0.05818233]
[1734516006344,0.69991452,104040.0,104030.0,0.05818233]
[1734516007543,0.69991452,104040.0,104030.0,0.1728245]
[1734516008262,0.58404702,104040.0,104030.0,0.1728245]
[1734516008438,0.69991452,104040.0,104030.0,0.1728245]
[1734516011348,0.58404702,104040.0,104030.0,0.1728245]
[1734516011560,0.69991452,104040.0,104030.0,0.1728245]
[1734516012660,0.72855237,104040.0,104030.0,0.1728245]
[1734516014944,0.81399956,104040.0,104030.0,0.2208995]
[1734516016740,0.45319956,104040.0,104030.0,0.2208995]
[1734516016949,0.45319956,104040.0,104030.0,0.5816995]
[1734516017345,0.24942469,104040.0,104030.0,0.81193417]
[1734516017856,0.36412762,104040.0,104030.0,0.81193417]
[1734516018071,0.36412488,104040.0,104030.0,0.81193417]
[1734516018357,0.24942469,104040.0,104030.0,0.81193417]
[1734516018653,0.24942469,104040.0,104030.0,0.639217]
[1734516018855,0.24942469,104040.0,104030.0,0.8120315]
[1734516020449,0.14342094,104040.0,104030.0,0.69715075]
[1734516020659,0.2581028,104040.0,104030.0,0.72985075]
[1734516021654,0.11472186,104040.0,104030.0,0.72985075]
[1734516021957,0.11472186,104040.0,104030.0,2.2395865]
[1734516022151,0.2581028,104040.0,104030.0,2.2395865]
[1734516023757,0.11472186,104040.0,104030.0,2.2395865]
[1734516023954,0.20073311,104040.0,104030.0,2.45390683]
[1734516024164,0.08605125,104040.0,104030.0,2.45390683]
[1734516024350,0.08605125,104040.0,104030.0,2.79916982]
[1734516025750,0.08605125,104040.0,104030.0,2.45390683]
[1734516027760,4e-05,104040.0,104030.0,2.45390683]
[1734516028056,0.08605125,104040.0,104030.0,2.45390683]
[1734516029053,4e-05,104040.0,104030.0,2.45390683]
[1734516030483,4e-05,104040.0,104030.0,2.6841066]
[1734516030651,4e-05,104040.0,104030.0,2.45390683]
[1734516030863,4e-05,104040.0,104030.0,2.39597308]
[1734516031054,4e-05,104040.0,104030.0,2.45390683]
[1734516032162,4e-05,104040.0,104030.0,2.45281346]
[1734516032358,4e-05,104040.0,104030.0,2.39487971]
[1734516032553,4e-05,104040.0,104030.0,2.45281346]
[1734516034062,4e-05,104040.0,104030.0,2.68296112]
[1734516034357,0.192055,104040.0,104030.0,2.59232737]
[1734516034578,0.192055,104040.0,104030.0,2.14886574]
[1734516034758,0.13412125,104040.0,104030.0,2.20679949]
[1734516035167,0.13412125,104040.0,104030.0,2.14886574]
[1734516035660,0.192055,104040.0,104030.0,2.14886574]
[1734516036560,0.192055,104040.0,104030.0,2.4365849]
[1734516037050,0.13412125,104040.0,104030.0,2.4365849]
[1734516038453,0.222255,104040.0,104030.0,2.4365849]
[1734516038676,0.31338875,104040.0,104030.0,2.32150571]
[1734516038865,0.255455,104040.0,104030.0,2.31176996]
[1734516039053,0.42807061,104040.0,104030.0,2.31176996]
[1734516039262,0.37013686,104040.0,104030.0,2.31176996]
[1734516041166,0.37009686,104040.0,104030.0,0.81176996]
[1734516041563,0.37009686,104040.0,104030.0,0.45096996]
[1734516041764,0.28408561,104040.0,104030.0,1.7208223]
[1734516042462,0.28408561,104040.0,104030.0,1.95096996]
[1734516042661,0.42746655,104040.0,104030.0,1.7208223]
[1734516043072,0.43691555,104040.0,104030.0,1.7208223]
[1734516043660,0.42746655,104040.0,104030.0,1.7208223]
[1734516044068,0.42746655,104040.0,104030.0,1.95096996]
[1734516044273,0.42746655,104040.0,104030.0,1.7208223]
[1734516044580,0.42746655,104040.0,104030.0,1.95096996]
[1734516049275,0.4854003,104040.0,104030.0,1.95096996]
[1734516049972,0.37071844,104040.0,104030.0,1.95096996]
[1734516050379,0.31278469,104040.0,104030.0,1.95096996]
[1734516050570,0.37071844,104040.0,104030.0,0.45096996]
[1734516050770,0.31278469,104040.0,104030.0,0.45096996]
[1734516052772,0.42746226,104040.0,104030.0,0.81176996]
[1734516053276,0.36952851,104040.0,104030.0,0.81176996]
[1734516053546,0.42746226,104040.0,104030.0,0.81176996]
[1734516054084,0.42746226,104040.0,104030.0,0.45096996]
[1734516055581,0.42746226,104040.0,104030.0,0.81176996]
[1734516055979,0.36952851,104040.0,104030.0,0.81176996]
[1734516057482,0.30612851,104040.0,104030.0,0.81176996]
[1734516057870,0.16274757,104040.0,104030.0,0.81176996]
[1734516058595,0.30612851,104040.0,104030.0,0.81176996]
[1734516058883,0.11467757,104040.0,104030.0,0.86970371]
[1734516059089,0.11467757,104040.0,104030.0,0.9847829]
[1734516059272,0.08604454,104040.0,104030.0,0.91277274]
[1734516059683,0.08604454,104040.0,104030.0,2.75803573]
[1734516060573,0.08604454,104040.0,104030.0,2.70010198]
[1734516060811,0.08604454,104040.0,104030.0,2.75803573]
[1734516061480,0.08604454,104040.0,104030.0,2.81596948]
[1734516061685,0.20072688,104050.0,104040.0,0.10600375]
[1734516061881,0.20072688,104050.0,104040.0,0.85003593]
[1734516062121,0.20072688,104050.0,104040.0,1.00817343]
[1734516062646,0.20122688,104050.0,104040.0,1.00817343]
[1734516062784,0.08654931,104050.0,104040.0,1.00817343]
[1734516063012,0.08654931,104050.0,104040.0,1.06610718]
[1734516063198,0.08654931,104050.0,104040.0,1.36610718]
[1734516063399,0.0005,104050.0,104040.0,1.36610718]
[1734516063587,0.34961394,104070.0,104060.0,0.048061]
[1734516063782,0.39766994,104070.0,104060.0,0.58153116]
[1734516063991,0.39766994,104070.0,104060.0,0.58161116]
[1734516064296,0.39766994,104070.0,104060.0,2.08161116]
[1734516065412,0.254289,104070.0,104060.0,2.08161116]
[1734516065892,0.254289,104070.0,104060.0,0.58161116]
[1734516066087,0.254289,104070.0,104060.0,0.17275016]
[1734516066296,0.254289,104070.0,104060.0,8e-05]
[1734516066986,0.254289,104070.0,104060.0,0.048141]
[1734516070888,0.19635525,104070.0,104060.0,0.408941]
[1734516071598,0.08167768,104070.0,104060.0,0.408941]
[1734516072095,0.08167768,104070.0,104060.0,0.46687475]
[1734516072283,0.03362168,104070.0,104060.0,0.46687475]
[1734516072497,0.03362168,104070.0,104060.0,0.63954491]
[1734516072806,0.03362168,104070.0,104060.0,0.72757866]
[1734516072982,0.00152168,104070.0,104060.0,0.95780555]
[1734516073188,0.00152168,104070.0,104060.0,1.01920555]
[1734516073385,0.00152168,104070.0,104060.0,2.23104491]
[1734516075294,7.976e-05,104070.0,104060.0,2.28897866]
[1734516075689,7.976e-05,104070.0,104060.0,2.23104491]
[1734516076712,0.10606951,104070.0,104060.0,2.11171116]
[1734516076887,0.13676951,104070.0,104060.0,2.11171116]
[1734516077195,0.13676951,104070.0,104060.0,0.61171116]
[1734516077396,0.13676951,104070.0,104060.0,0.22081116]
[1734516077599,0.13676951,104070.0,104060.0,0.2628572]
[1734516077997,0.13676951,104070.0,104060.0,0.09018704]
[1734516078201,0.52816951,104070.0,104060.0,0.09018704]
[1734516078495,0.47023576,104070.0,104060.0,0.14812079]
[1734516078805,0.47023576,104070.0,104060.0,0.09018704]
[1734516079295,0.52816951,104070.0,104060.0,0.09018704]
[1734516080397,0.64284708,104070.0,104060.0,0.09018704]
[1734516080602,0.64334708,104070.0,104060.0,0.09018704]
[1734516081215,0.70128083,104070.0,104060.0,0.04212604]
[1734516081590,0.64334708,104070.0,104060.0,8e-05]
[1734516081798,0.78672802,104070.0,104060.0,8e-05]
[1734516081988,0.81749651,104070.0,104060.0,8e-05]
[1734516082399,1.20619875,104070.0,104060.0,0.04213519]
[1734516082598,0.048065,104050.0,104040.0,0.048069]
[1734516082914,0.04807,104040.0,104030.0,0.81187738]
[1734516083115,0.16967224,104040.0,104030.0,0.58165049]
[1734516083402,0.08101,104040.0,104030.0,2.08165049]
[1734516085893,0.04811,104040.0,104030.0,2.17035273]
[1734516086107,4e-05,104040.0,104030.0,2.17035273]
[1734516086301,4e-05,104040.0,104030.0,2.40057962]
[1734516086918,4e-05,104040.0,104030.0,2.31187738]
[1734516087706,0.13681224,104040.0,104030.0,1.77840722]
[1734516087892,0.61210021,104040.0,104030.0,1.72064002]
[1734516088204,0.52339797,104040.0,104030.0,1.72064002]
[1734516088812,0.52339797,104040.0,104030.0,1.67256502]
[1734516088996,0.64390021,104040.0,104030.0,1.67256502]
[1734516089305,0.55519797,104040.0,104030.0,1.50010733]
[1734516089808,0.55519797,104040.0,104030.0,0.00010733]
[1734516089998,0.64390021,104040.0,104030.0,0.00010733]
[1734516090406,0.64390021,104040.0,104030.0,1.50010733]
[1734516091107,0.64390021,104040.0,104030.0,0.00010733]
[1734516091616,0.64390021,104040.0,104030.0,1.50010733]
[1734516092797,0.55519797,104040.0,104030.0,1.50010733]
[1734516093401,0.56476881,104040.0,104030.0,1.50010733]
[1734516094304,0.56476881,104040.0,104030.0,0.00010733]
[1734516094604,0.56476881,104040.0,104030.0,0.00060733]
[1734516094822,0.56476881,104040.0,104030.0,1.50060733]
[1734516095507,0.45028084,104040.0,104030.0,1.54868233]
[1734516097797,0.45028084,104040.0,104030.0,0.04868233]
[1734516098409,0.45028084,104040.0,104030.0,1.50060733]
[1734516098824,0.45028084,104040.0,104030.0,0.00060733]
[1734516099909,0.45028084,104040.0,104030.0,0.04868233]
[1734516100110,0.45028084,104040.0,104030.0,0.00060733]
[1734516100312,0.45028084,104040.0,104030.0,0.04868233]
[1734516102012,0.50851155,104040.0,104030.0,0.04868233]
[1734516104416,0.62299952,104040.0,104030.0,0.04868233]
[1734516104712,0.68123023,104040.0,104030.0,0.00060733]
[1734516108114,0.82434019,104040.0,104030.0,0.00060733]
[1734516109320,0.70985222,104040.0,104030.0,0.00060733]
[1734516110715,0.70985222,104040.0,104030.0,0.0426734]
[1734516110918,0.34905222,104040.0,104030.0,0.0426734]
[1734516111110,0.70985222,104040.0,104030.0,0.0426734]
[1734516111319,0.88182709,104040.0,104030.0,0.0426734]
[1734516111519,0.88182709,104040.0,104030.0,0.0421734]
[1734516112425,0.73871713,104040.0,104030.0,0.21435797]
[1734516113116,0.73871713,104040.0,104030.0,0.1722919]
[1734516113534,0.73871713,104040.0,104030.0,0.21435797]
[1734516117828,0.56674226,104040.0,104030.0,0.21435797]
[1734516118223,0.7974928,104040.0,104030.0,0.21435797]
[1734516118449,0.048075,104030.0,104020.0,0.40323436]
[1734516118641,0.58823642,104030.0,104020.0,0.17350747]
[1734516118834,0.58827642,104030.0,104020.0,0.17350747]
[1734516119229,0.78891377,104030.0,104020.0,0.0005]
[1734516121034,0.84128331,104020.0,104010.0,0.23022689]
[1734516121628,0.048084,104010.0,104000.0,2.52833751]
[1734516121832,0.17305628,104010.0,104000.0,2.68898764]
[1734516122035,0.17305628,104010.0,104000.0,2.51699146]
[1734516122036,0.11486557,104010.0,104000.0,2.51699146]
[1734516122531,4e-05,104010.0,104000.0,2.86225445]
[1734516123032,4e-05,104010.0,104000.0,2.86425445]
[1734516123228,4e-05,104010.0,104000.0,2.8626438]
[1734516123740,4e-05,104010.0,104000.0,1.3626438]
[1734516124233,4e-05,104010.0,104000.0,2.8626438]
[1734516127243,4e-05,104010.0,104000.0,2.51738081]
[1734516127536,0.10635471,104010.0,104000.0,0.9591501]
[1734516127844,0.22118028,104010.0,104000.0,0.5983501]
[1734516128038,0.22118028,104010.0,104000.0,0.66973917]
[1734516128237,0.22118028,104010.0,104000.0,1.03053917]
[1734516128441,0.22118028,104010.0,104000.0,0.64188444]
[1734516128643,0.22118028,104010.0,104000.0,0.87228851]
[1734516128939,0.22118028,104010.0,104000.0,0.61233382]
[1734516129345,0.22118028,104010.0,104000.0,0.90011743]
[1734516129540,0.22118028,104010.0,104000.0,0.61233382]
[1734516131434,0.22118028,104010.0,104000.0,0.65440649]
[1734516131631,0.25168028,104010.0,104000.0,0.65440649]
[1734516133247,0.25168028,104010.0,104000.0,0.42400242]
[1734516133636,0.25168028,104010.0,104000.0,0.19359968]
[1734516134348,0.25168028,104010.0,104000.0,0.37591742]
[1734516134647,0.30991099,104010.0,104000.0,0.14407267]
[1734516134942,1.05480858,104010.0,104000.0,0.14407267]
[1734516135140,1.08570858,104010.0,104000.0,0.14407267]
[1734516135346,1.25801925,104010.0,104000.0,0.14407267]
[1734516135536,1.08570858,104010.0,104000.0,0.14407267]
[1734516135740,1.25801925,104010.0,104000.0,0.14407267]
[1734516136045,1.25801925,104010.0,104000.0,0.1]
[1734516136545,0.048093,103990.0,103980.0,2.13269052]
[1734516136738,0.10632371,103990.0,103980.0,2.12324142]
[1734516136936,0.10636371,103990.0,103980.0,2.17133942]
[1734516137533,0.10636371,103990.0,103980.0,2.17333942]
[1734516138038,0.09157071,103990.0,103980.0,2.17933942]
[1734516138438,0.09057071,103990.0,103980.0,2.17333942]
[1734516138643,0.09057071,103990.0,103980.0,2.17533942]
[1734516138839,0.13866371,103990.0,103980.0,2.17533942]
[1734516139046,0.13866371,103990.0,103980.0,2.14503942]
[1734516139246,0.13866371,103990.0,103980.0,1.91463668]
[1734516139446,0.13866371,103990.0,103980.0,1.95671608]
[1734516139647,0.49946371,103990.0,103980.0,1.59391608]
[1734516139833,0.49946371,103990.0,103980.0,1.60259212]
[1734516140440,0.49946371,103990.0,103980.0,1.60258996]
[1734516143040,0.53166371,103990.0,103980.0,1.60258996]
[1734516143242,0.646307,103990.0,103980.0,1.60258996]
[1734516143548,0.53166371,103990.0,103980.0,0.10258996]
[1734516144351,0.646307,103990.0,103980.0,0.10259277]
[1734516144742,0.646307,103990.0,103980.0,0.06051337]
[1734516145143,0.646307,103990.0,103980.0,0.07541295]
[1734516145644,0.646307,103990.0,103980.0,0.02731495]
[1734516145949,0.646307,103990.0,103980.0,0.02731766]
[1734516146243,0.646307,103990.0,103980.0,0.07541983]
[1734516146948,0.17086371,103990.0,103980.0,0.07541983]
[1734516147447,0.17086371,103990.0,103980.0,0.06052025]
[1734516148246,0.54610372,103990.0,103980.0,0.10259965]
[1734516148444,0.53166371,103990.0,103980.0,0.10259965]
[1734516148651,0.54610372,103990.0,103980.0,0.10259965]
[1734516149054,0.54610372,103990.0,103980.0,0.06052025]
[1734516149447,0.54610372,103990.0,103980.0,0.06051763]
[1734516150648,0.54610372,103990.0,103980.0,0.05934668]
[1734516151038,0.56518893,103990.0,103980.0,0.05934668]
[1734516151346,0.67966201,103990.0,103980.0,0.01124868]
[1734516151548,0.67966201,103990.0,103980.0,0.01074868]
[1734516151747,0.67966201,103990.0,103980.0,0.05884668]
[1734516152654,0.56518893,103990.0,103980.0,0.05934668]
[1734516153053,0.51854892,103990.0,103980.0,0.05934668]
[1734516153553,0.15774892,103990.0,103980.0,0.05884668]
[1734516154657,0.272222,103990.0,103980.0,0.05934668]
[1734516154856,0.633022,103990.0,103980.0,0.05934668]
[1734516155055,0.272222,103990.0,103980.0,0.05934668]
[1734516155446,0.633022,103990.0,103980.0,0.05934668]
[1734516156460,0.272222,103990.0,103980.0,0.05934668]
[1734516158357,0.272222,103990.0,103980.0,0.0593453]
[1734516159354,0.272222,103990.0,103980.0,0.1014247]
[1734516160457,0.41531335,103990.0,103980.0,0.1014247]
[1734516161360,0.272222,103990.0,103980.0,0.1014247]
[1734516161663,0.41531335,103990.0,103980.0,0.1014247]
[1734516164465,0.30084027,103990.0,103980.0,0.33133503]
[1734516164765,0.30084027,103990.0,103980.0,0.33083503]
[1734516166555,0.47254989,103990.0,103980.0,0.33083503]
[1734516166757,0.30084027,103990.0,103980.0,0.33083503]
[1734516167051,0.47254989,103990.0,103980.0,0.33083503]
[1734516167358,0.47254989,103990.0,103980.0,0.33067267]
[1734516167967,0.32945854,103990.0,103980.0,0.33067267]
[1734516168261,0.34389855,103990.0,103980.0,0.10076234]
[1734516168465,0.34389855,103990.0,103980.0,0.33067267]
[1734516170756,0.32945854,103990.0,103980.0,0.33067267]
[1734516170957,0.47305581,103990.0,103980.0,0.33067267]
[1734516171758,0.32945854,103990.0,103980.0,0.33067267]
[1734516171967,0.32945854,103990.0,103980.0,0.32215641]
[1734516172158,0.47306601,103990.0,103980.0,0.33067021]
[1734516172571,0.47306601,103990.0,103980.0,0.32215641]
[1734516172870,0.32945854,103990.0,103980.0,0.32215641]
[1734516173070,0.32945854,103990.0,103980.0,0.33067002]
[1734516173669,0.47306755,103990.0,103980.0,0.33067002]
[1734516175271,0.47306755,103990.0,103980.0,0.32215641]
[1734516176570,0.25853735,103990.0,103980.0,1.55188701]
[1734516176873,0.37364028,104010.0,103990.0,0.048093]
[1734516177058,0.42172428,104010.0,104000.0,0.31201548]
[1734516177274,0.42172428,104010.0,104000.0,0.60050483]
[1734516177569,0.25001466,104010.0,104000.0,0.31209548]
[1734516178167,0.25001466,104010.0,104000.0,0.35417024]
[1734516178168,0.14369995,104010.0,104000.0,0.35417024]
[1734516178368,9.094e-05,104010.0,104000.0,1.0939103]
[1734516178557,9.094e-05,104010.0,104000.0,1.06038136]
[1734516179163,9.094e-05,104010.0,104000.0,1.40647258]
[1734516179464,9.094e-05,104010.0,104000.0,1.06038136]
[1734516179668,9.094e-05,104010.0,104000.0,1.2905674]
[1734516180366,9.094e-05,104010.0,104000.0,1.28873107]
[1734516180968,9.094e-05,104010.0,104000.0,1.23050036]
[1734516181174,9.094e-05,104010.0,104000.0,0.83635951]
[1734516182171,9.094e-05,104010.0,104000.0,0.7781288]
[1734516182473,0.04817494,104010.0,104000.0,0.79428475]
[1734516182866,9.094e-05,104010.0,104000.0,0.79428475]
[1734516183866,9.094e-05,104010.0,104000.0,0.80401023]
[1734516184570,0.00059094,104010.0,104000.0,0.80401023]
[1734516186573,0.00059094,104010.0,104000.0,0.57382419]
[1734516188267,0.00059094,104010.0,104000.0,0.6320549]
[1734516188470,0.00059094,104010.0,104000.0,0.86224094]
[1734516188664,0.00059094,104010.0,104000.0,1.16224094]
[1734516189173,0.00059094,104010.0,104000.0,2.36224094]
[1734516191371,0.00059094,104010.0,104000.0,2.66224094]
[1734516191578,0.00059094,104010.0,104000.0,2.36224094]
[1734516191975,0.00059094,104010.0,104000.0,2.66224094]
[1734516192183,0.5200927,104030.0,104020.0,0.048079]
[1734516192184,0.434136,104030.0,104020.0,0.048079]
[1734516192369,0.5200927,104030.0,104020.0,0.408879]
[1734516192674,0.434136,104030.0,104020.0,0.408959]
[1734516192876,0.4720167,104030.0,104020.0,1.96718971]
[1734516193075,0.35536,104030.0,104020.0,2.05802042]
[1734516193282,0.000101,104030.0,104020.0,2.06508971]
[1734516193880,0.000101,104030.0,104020.0,2.12332042]
[1734516195080,0.000101,104030.0,104020.0,2.12642097]
[1734516196179,0.000101,104030.0,104020.0,2.48722097]
[1734516199583,0.000601,104030.0,104020.0,2.48722097]
[1734516200978,0.000601,104030.0,104020.0,2.49706113]
[1734516203779,0.000601,104030.0,104020.0,2.49396434]
[1734516204094,0.000601,104030.0,104020.0,2.49706045]
[1734516204585,0.000601,104030.0,104020.0,2.72724649]
[1734516207683,0.000601,104030.0,104020.0,1.51565584]
[1734516207888,0.0859567,104040.0,104030.0,0.048075]
[1734516208187,0.0859567,104040.0,104030.0,0.47028182]
[1734516208692,0.1340267,104040.0,104030.0,0.47028182]
[1734516208983,0.13410204,104040.0,104030.0,0.47028182]
[1734516209282,0.08603204,104040.0,104030.0,0.47028182]
[1734516210080,0.08603204,104040.0,104030.0,0.46718571]
[1734516212396,0.13410204,104040.0,104030.0,0.408955]
[1734516212590,0.19830204,104040.0,104030.0,0.408955]
[1734516212891,0.11234534,104040.0,104030.0,0.46718571]
[1734516213289,0.17057605,104040.0,104030.0,0.408955]
[1734516213594,0.11234534,104040.0,104030.0,1.908955]
[1734516214798,0.11284534,104040.0,104030.0,1.908955]
[1734516215089,0.11284534,104040.0,104030.0,1.96718571]
[1734516216289,0.11284534,104040.0,104030.0,2.19737175]
[1734516216883,0.11284534,104040.0,104030.0,2.13914104]
[1734516217083,0.11284534,104040.0,104030.0,2.19737175]
[1734516218092,0.25645435,104040.0,104030.0,2.19737175]
[1734516222010,0.25645435,104040.0,104030.0,2.13914104]
[1734516223691,0.17518435,104040.0,104030.0,2.19737175]
[1734516223994,0.14418435,104040.0,104030.0,1.20279928]
[1734516224187,0.14418435,104040.0,104030.0,1.14456857]
[1734516224387,0.14418435,104040.0,104030.0,0.95645729]
[1734516224588,0.14418435,104040.0,104030.0,2.45645729]
[1734516224889,0.00057534,104040.0,104030.0,2.80113939]
[1734516225598,0.08670717,104040.0,104030.0,2.80113939]
[1734516225983,0.08671061,104040.0,104030.0,2.57096075]
[1734516226298,0.08671061,104040.0,104030.0,2.81708914]
[1734516226496,0.08671061,104040.0,104030.0,2.52888599]
[1734516227490,0.08671061,104040.0,104030.0,2.82888599]
[1734516227688,0.08611052,104050.0,104040.0,0.10629871]
[1734516227894,0.08611052,104050.0,104040.0,1.1072458]
[1734516228197,0.01,104060.0,104050.0,0.048064]
[1734516228387,0.01,104060.0,104050.0,0.92708684]
[1734516228586,0.01012155,104060.0,104050.0,1.46868268]
[1734516228787,0.01012155,104060.0,104050.0,1.58523943]
[1734516228998,0.01012155,104060.0,104050.0,1.29733785]
[1734516229194,0.01012155,104060.0,104050.0,1.24507578]
[1734516229395,0.01012155,104060.0,104050.0,1.18684507]
[1734516229602,0.01012155,104060.0,104050.0,1.48998027]
[1734516229805,0.01012155,104060.0,104050.0,1.14477031]
[1734516229995,0.01012155,104060.0,104050.0,2.64477031]
[1734516230495,0.01012155,104060.0,104050.0,2.6447724]
[1734516231195,0.01012155,104060.0,104050.0,2.87472109]
[1734516232103,0.01012155,104060.0,104050.0,2.7185553]
[1734516232297,0.01012155,104060.0,104050.0,0.93069]
[1734516232492,0.01012155,104060.0,104050.0,1.21804903]
[1734516232692,0.01012155,104060.0,104050.0,2.72745914]
[1734516232994,0.01012155,104060.0,104050.0,2.94152674]
[1734516233192,0.01012155,104060.0,104050.0,2.44009128]
[1734516233594,0.01012155,104060.0,104050.0,2.49832199]
[1734516233789,0.01012155,104060.0,104050.0,3.24054699]
[1734516233998,0.00144213,104070.0,104060.0,0.048059]
[1734516234189,0.00144213,104070.0,104060.0,0.59266703]
[1734516234690,1.2188081,104090.0,104060.0,0.59266703]
[1734516234886,1.16057739,104090.0,104080.0,0.04805]
[1734516235088,1.16057739,104090.0,104080.0,0.0512763]
[1734516235089,1.16066843,104090.0,104080.0,0.0512763]
[1734516235700,1.16066843,104090.0,104080.0,0.04813]
[1734516236696,1.27510821,104090.0,104080.0,0.04813]